[Event "*** SCC Grand Prix: Titled Tuesday Blitz"]
[Site "Chess.com"]
[Date "2020.10.06"]
[Round "9"]
[White "penguingm1"]
[Black "VitaliyBernadskiy"]
[Result "0-1"]
[WhiteElo "2846"]
[BlackElo "2765"]
[TimeControl "180+1"]
[EndTime "11:48:16 PDT"]
[Termination "VitaliyBernadskiy won on time"]

1. d4 {[%clk 0:03:00.9]} 1... g6 {[%clk 0:02:58.9]} 2. c4 {[%clk 0:02:59.9]}
2... Bg7 {[%clk 0:02:59.3]} 3. Nc3 {[%clk 0:02:59.5]} 3... c5 {[%clk 0:02:59.3]}
4. d5 {[%clk 0:02:59.8]} 4... d6 {[%clk 0:02:59]} 5. e4 {[%clk 0:03:00]} 5... e6
{[%clk 0:02:59.5]} 6. Nge2 {[%clk 0:02:59.6]} 6... Ne7 {[%clk 0:02:59.5]} 7. h4
{[%clk 0:02:59.4]} 7... h6 {[%clk 0:02:59.2]} 8. h5 {[%clk 0:02:33.5]} 8... g5
{[%clk 0:02:58.9]} 9. f4 {[%clk 0:02:30.6]} 9... exd5 {[%clk 0:02:56.8]} 10.
cxd5 {[%clk 0:01:47.4]} 10... gxf4 {[%clk 0:02:56.7]} 11. Bxf4 {[%clk
0:01:46.7]} 11... Qb6 {[%clk 0:02:56.8]} 12. Qd2 {[%clk 0:01:35.8]} 12... Nd7
{[%clk 0:02:55.3]} 13. Ng3 {[%clk 0:01:27.2]} 13... Ne5 {[%clk 0:02:54.6]} 14.
O-O-O {[%clk 0:01:18.4]} 14... Bd7 {[%clk 0:02:42.8]} 15. Be2 {[%clk 0:01:10.3]}
15... O-O-O {[%clk 0:02:41.9]} 16. Rdf1 {[%clk 0:01:01.6]} 16... Kb8 {[%clk
0:02:40.8]} 17. Kb1 {[%clk 0:00:57.8]} 17... Rdf8 {[%clk 0:02:29.1]} 18. Rf2
{[%clk 0:00:31.4]} 18... Qb4 {[%clk 0:02:18.1]} 19. Rhf1 {[%clk 0:00:25.5]}
19... Nc8 {[%clk 0:02:17.9]} 20. Qc2 {[%clk 0:00:20.7]} 20... Nb6 {[%clk
0:02:12]} 21. a3 {[%clk 0:00:18.7]} 21... Qa5 {[%clk 0:02:10.2]} 22. Nd1 {[%clk
0:00:14.3]} 22... Na4 {[%clk 0:01:59.6]} 23. Bd2 {[%clk 0:00:10.7]} 23... Qb6
{[%clk 0:01:56.6]} 24. Nc3 {[%clk 0:00:10.4]} 24... Nxc3+ {[%clk 0:01:37.2]} 25.
Bxc3 {[%clk 0:00:11.3]} 25... Rhg8 {[%clk 0:01:30]} 26. Nf5 {[%clk 0:00:08.6]}
26... Bxf5 {[%clk 0:01:30]} 27. Rxf5 {[%clk 0:00:09.5]} 27... Bh8 {[%clk
0:01:30]} 28. R1f2 {[%clk 0:00:09.1]} 28... Rg3 {[%clk 0:01:14.6]} 29. Ka2
{[%clk 0:00:07.7]} 29... Rfg8 {[%clk 0:01:08.8]} 30. Bf3 {[%clk 0:00:03.3]}
30... c4 {[%clk 0:00:49.8]} 31. Rd2 {[%clk 0:00:02.7]} 31... Ng4 {[%clk
0:00:40.5]} 32. Bxh8 {[%clk 0:00:02.4]} 32... Ne3 {[%clk 0:00:39.7]} 33. Qc3
{[%clk 0:00:02.2]} 33... Qb3+ {[%clk 0:00:20.5]} 34. Qxb3 {[%clk 0:00:02.4]}
34... cxb3+ {[%clk 0:00:21.4]} 35. Kxb3 {[%clk 0:00:03.3]} 35... Nxf5 {[%clk
0:00:21.4]} 36. Bf6 {[%clk 0:00:03.9]} 36... Ne3 {[%clk 0:00:14.7]} 37. Bh4
{[%clk 0:00:04.1]} 37... R3g7 {[%clk 0:00:11.6]} 38. e5 {[%clk 0:00:04.5]} 38...
Nf5 {[%clk 0:00:09.1]} 39. Bf6 {[%clk 0:00:04.5]} 39... Rg3 {[%clk 0:00:09.5]}
40. exd6 {[%clk 0:00:05.1]} 40... Kc8 {[%clk 0:00:06.4]} 41. Rc2+ {[%clk
0:00:04.2]} 41... Kd7 {[%clk 0:00:06.5]} 42. Be5 {[%clk 0:00:04.9]} 42... Nxd6
{[%clk 0:00:02.6]} 43. Bxg3 {[%clk 0:00:04.9]} 43... Rxg3 {[%clk 0:00:03.5]} 44.
Rc3 {[%clk 0:00:05.3]} 44... Nf5 {[%clk 0:00:03.6]} 45. Rd3 {[%clk 0:00:05.5]}
45... Kd6 {[%clk 0:00:03.4]} 46. Kc3 {[%clk 0:00:05.7]} 46... Nh4 {[%clk
0:00:03.8]} 47. Be4 {[%clk 0:00:05.9]} 47... Rxd3+ {[%clk 0:00:03.2]} 48. Kxd3
{[%clk 0:00:06]} 48... f5 {[%clk 0:00:04.1]} 49. Bf3 {[%clk 0:00:04.8]} 49...
Nxf3 {[%clk 0:00:04.4]} 50. gxf3 {[%clk 0:00:05.7]} 50... Kxd5 {[%clk 0:00:05]}
51. Ke3 {[%clk 0:00:06]} 51... Ke5 {[%clk 0:00:05.3]} 52. f4+ {[%clk 0:00:05.6]}
52... Kd5 {[%clk 0:00:05.6]} 53. Kd3 {[%clk 0:00:06.3]} 53... b5 {[%clk
0:00:05.6]} 54. b3 {[%clk 0:00:05.8]} 54... a5 {[%clk 0:00:05.8]} 55. Ke3 {[%clk
0:00:02.9]} 55... Kc5 {[%clk 0:00:03]} 56. Kd3 {[%clk 0:00:02.5]} 56... Kd5
{[%clk 0:00:02.6]} 57. Ke3 {[%clk 0:00:01.9]} 57... Kc5 {[%clk 0:00:02.5]} 58.
Kd3 {[%clk 0:00:02.5]} 58... a4 {[%clk 0:00:02.9]} 59. bxa4 {[%clk 0:00:02.8]}
59... bxa4 {[%clk 0:00:03.8]} 60. Kc3 {[%clk 0:00:03.6]} 60... Kd5 {[%clk
0:00:04.2]} 61. Kb4 {[%clk 0:00:04.2]} 61... Ke4 {[%clk 0:00:04.5]} 62. Kxa4
{[%clk 0:00:04.7]} 62... Kxf4 {[%clk 0:00:05.4]} 63. Kb4 {[%clk 0:00:04.8]}
63... Kg3 {[%clk 0:00:06.3]} 64. a4 {[%clk 0:00:05.5]} 64... f4 {[%clk
0:00:07.2]} 65. a5 {[%clk 0:00:06.4]} 65... f3 {[%clk 0:00:08.1]} 66. a6 {[%clk
0:00:07.3]} 66... f2 {[%clk 0:00:08.9]} 67. a7 {[%clk 0:00:08.2]} 67... f1=Q
{[%clk 0:00:08.9]} 68. a8=Q {[%clk 0:00:09.1]} 68... Qf4+ {[%clk 0:00:08.4]} 69.
Kb5 {[%clk 0:00:08.5]} 69... Qf5+ {[%clk 0:00:08]} 70. Kc4 {[%clk 0:00:08.9]}
70... Qxh5 {[%clk 0:00:07.7]} 71. Qb8+ {[%clk 0:00:09]} 71... Kg2 {[%clk
0:00:07.6]} 72. Qb2+ {[%clk 0:00:08.9]} 72... Kg3 {[%clk 0:00:07.2]} 73. Qb8+
{[%clk 0:00:05.1]} 73... Kh3 {[%clk 0:00:07.3]} 74. Kd3 {[%clk 0:00:03.9]} 74...
Qf3+ {[%clk 0:00:06.9]} 75. Kd2 {[%clk 0:00:04.5]} 75... h5 {[%clk 0:00:06.3]}
76. Qc8+ {[%clk 0:00:04.3]} 76... Kg2 {[%clk 0:00:06.1]} 77. Qg8+ {[%clk
0:00:04]} 77... Qg4 {[%clk 0:00:05.8]} 78. Qd5+ {[%clk 0:00:04.3]} 78... Kg1
{[%clk 0:00:05.3]} 79. Qc5+ {[%clk 0:00:04.3]} 79... Kh1 {[%clk 0:00:05]} 80.
Qc6+ {[%clk 0:00:04.6]} 80... Qg2+ {[%clk 0:00:04.7]} 0-1

[Event "*** SCC Grand Prix: Titled Tuesday Blitz"]
[Site "Chess.com"]
[Date "2020.10.06"]
[Round "9"]
[White "elohunter1999"]
[Black "Grandelicious"]
[Result "1/2-1/2"]
[WhiteElo "2597"]
[BlackElo "2785"]
[TimeControl "180+1"]
[EndTime "11:48:26 PDT"]
[Termination "Game drawn - insufficient material"]

1. e4 {[%clk 0:03:00.9]} 1... c6 {[%clk 0:02:59.3]} 2. Nc3 {[%clk 0:03:00.6]}
2... d5 {[%clk 0:02:59.5]} 3. Nf3 {[%clk 0:03:01.3]} 3... dxe4 {[%clk
0:02:58.6]} 4. Nxe4 {[%clk 0:03:02.2]} 4... Nf6 {[%clk 0:02:58.6]} 5. Qe2 {[%clk
0:03:02.4]} 5... Bf5 {[%clk 0:02:58.6]} 6. Nxf6+ {[%clk 0:03:00.7]} 6... gxf6
{[%clk 0:02:59.5]} 7. d3 {[%clk 0:03:01.2]} 7... Nd7 {[%clk 0:02:57.9]} 8. g3
{[%clk 0:02:57.6]} 8... Qa5+ {[%clk 0:02:48]} 9. Bd2 {[%clk 0:02:55.9]} 9... Qa4
{[%clk 0:02:37.6]} 10. Bc3 {[%clk 0:02:38]} 10... Nb6 {[%clk 0:02:30]} 11. Nd4
{[%clk 0:02:26.1]} 11... Bd7 {[%clk 0:02:22.5]} 12. Bg2 {[%clk 0:02:15]} 12...
Nd5 {[%clk 0:02:18.5]} 13. O-O {[%clk 0:02:06.3]} 13... e5 {[%clk 0:02:05.4]}
14. Nb3 {[%clk 0:01:49.2]} 14... Nxc3 {[%clk 0:01:58.5]} 15. bxc3 {[%clk
0:01:50.1]} 15... O-O-O {[%clk 0:01:58.9]} 16. Rab1 {[%clk 0:01:43.3]} 16... h5
{[%clk 0:01:58.2]} 17. h4 {[%clk 0:01:42.5]} 17... Bd6 {[%clk 0:01:53.4]} 18.
Qe3 {[%clk 0:01:41.1]} 18... Qa3 {[%clk 0:01:53.4]} 19. c4 {[%clk 0:01:34.4]}
19... f5 {[%clk 0:01:52.1]} 20. c5 {[%clk 0:01:30.5]} 20... Bc7 {[%clk
0:01:46.1]} 21. Nd2 {[%clk 0:00:48]} 21... f4 {[%clk 0:01:40.5]} 22. Nc4 {[%clk
0:00:47.2]} 22... fxe3 {[%clk 0:01:33.1]} 23. Nxa3 {[%clk 0:00:46.9]} 23...
exf2+ {[%clk 0:01:31.9]} 24. Rxf2 {[%clk 0:00:47.8]} 24... Be6 {[%clk
0:01:31.7]} 25. Be4 {[%clk 0:00:37.2]} 25... Rhg8 {[%clk 0:01:28.2]} 26. Kh2
{[%clk 0:00:35]} 26... Bxa2 {[%clk 0:01:27.1]} 27. Rbf1 {[%clk 0:00:33.1]} 27...
Rg7 {[%clk 0:01:26.1]} 28. c4 {[%clk 0:00:29.2]} 28... Bb3 {[%clk 0:01:21.5]}
29. Rb2 {[%clk 0:00:29.2]} 29... Ba4 {[%clk 0:01:06.1]} 30. Rb4 {[%clk
0:00:27.7]} 30... Rdg8 {[%clk 0:01:06.5]} 31. Rg1 {[%clk 0:00:16]} 31... Bd1
{[%clk 0:00:51.3]} 32. Rxd1 {[%clk 0:00:15.8]} 32... Rxg3 {[%clk 0:00:51.9]} 33.
Rb2 {[%clk 0:00:14.3]} 33... f5 {[%clk 0:00:50.8]} 34. Bxf5+ {[%clk 0:00:14.5]}
34... Kd8 {[%clk 0:00:51.3]} 35. Be4 {[%clk 0:00:12.5]} 35... R3g4 {[%clk
0:00:50.1]} 36. Kh3 {[%clk 0:00:13]} 36... Ke8 {[%clk 0:00:50.1]} 37. Rg2 {[%clk
0:00:12.2]} 37... Bd8 {[%clk 0:00:48]} 38. Rxg4 {[%clk 0:00:11.9]} 38... Rxg4
{[%clk 0:00:48.9]} 39. Rf1 {[%clk 0:00:11.6]} 39... Rxh4+ {[%clk 0:00:46.9]} 40.
Kg2 {[%clk 0:00:12.1]} 40... Rg4+ {[%clk 0:00:44.9]} 41. Kf3 {[%clk 0:00:12.6]}
41... Be7 {[%clk 0:00:45.4]} 42. Nc2 {[%clk 0:00:12.4]} 42... Bxc5 {[%clk
0:00:45.1]} 43. Rh1 {[%clk 0:00:12.6]} 43... Rf4+ {[%clk 0:00:44.1]} 44. Kg3
{[%clk 0:00:13.1]} 44... h4+ {[%clk 0:00:44.2]} 45. Kh3 {[%clk 0:00:11.6]} 45...
a5 {[%clk 0:00:41.6]} 46. Ra1 {[%clk 0:00:09.5]} 46... Rf2 {[%clk 0:00:41.7]}
47. Ne1 {[%clk 0:00:08.7]} 47... Bb4 {[%clk 0:00:38.7]} 48. Nf3 {[%clk
0:00:08.8]} 48... Ke7 {[%clk 0:00:35.1]} 49. Rg1 {[%clk 0:00:05.9]} 49... Bc3
{[%clk 0:00:32]} 50. Rg7+ {[%clk 0:00:06]} 50... Kd6 {[%clk 0:00:32.4]} 51. Rxb7
{[%clk 0:00:06.9]} 51... a4 {[%clk 0:00:26.5]} 52. Rb6 {[%clk 0:00:07.1]} 52...
a3 {[%clk 0:00:25.8]} 53. Rxc6+ {[%clk 0:00:07.5]} 53... Kd7 {[%clk 0:00:24.3]}
54. Ra6 {[%clk 0:00:07.3]} 54... a2 {[%clk 0:00:24.5]} 55. Rxa2 {[%clk
0:00:04.5]} 55... Rxa2 {[%clk 0:00:24]} 56. Kxh4 {[%clk 0:00:05.4]} 56... Ke6
{[%clk 0:00:20.3]} 57. Kg4 {[%clk 0:00:05.1]} 57... Rg2+ {[%clk 0:00:19.7]} 58.
Kh3 {[%clk 0:00:05.5]} 58... Rg7 {[%clk 0:00:20]} 59. Nh4 {[%clk 0:00:02.7]}
59... Bd4 {[%clk 0:00:18.7]} 60. Nf3 {[%clk 0:00:03.6]} 60... Be3 {[%clk
0:00:17.8]} 61. Kh4 {[%clk 0:00:04.1]} 61... Bf4 {[%clk 0:00:17.8]} 62. Kh3
{[%clk 0:00:04.6]} 62... Rg3+ {[%clk 0:00:17.7]} 63. Kh4 {[%clk 0:00:05.2]}
63... Rg7 {[%clk 0:00:17.3]} 64. Bd5+ {[%clk 0:00:05.3]} 64... Kf6 {[%clk
0:00:16.9]} 65. Be4 {[%clk 0:00:06.2]} 65... Rd7 {[%clk 0:00:16.6]} 66. Kg4
{[%clk 0:00:06.2]} 66... Rg7+ {[%clk 0:00:15.9]} 67. Kh4 {[%clk 0:00:06.5]}
67... Rg8 {[%clk 0:00:16.8]} 68. Kh5 {[%clk 0:00:04.6]} 68... Be3 {[%clk
0:00:15.8]} 69. Kh4 {[%clk 0:00:04.8]} 69... Bd4 {[%clk 0:00:14.1]} 70. Kh3
{[%clk 0:00:04.6]} 70... Ke7 {[%clk 0:00:13.4]} 71. Kh4 {[%clk 0:00:05]} 71...
Kd6 {[%clk 0:00:13.8]} 72. Ng5 {[%clk 0:00:04.8]} 72... Kc5 {[%clk 0:00:12.1]}
73. Ne6+ {[%clk 0:00:04.6]} 73... Kb4 {[%clk 0:00:11.5]} 74. Ng5 {[%clk
0:00:03.7]} 74... Kc3 {[%clk 0:00:11.1]} 75. Nf3 {[%clk 0:00:04]} 75... Rg7
{[%clk 0:00:08.7]} 76. Kh3 {[%clk 0:00:03.8]} 76... Kc2 {[%clk 0:00:07.8]} 77.
Nxd4+ {[%clk 0:00:03.1]} 77... exd4 {[%clk 0:00:08.7]} 78. c5 {[%clk 0:00:04]}
78... Rc7 {[%clk 0:00:07.7]} 79. c6 {[%clk 0:00:04.1]} 79... Kd2 {[%clk
0:00:07.7]} 80. Kg4 {[%clk 0:00:04.7]} 80... Ke3 {[%clk 0:00:08.1]} 81. Kf5
{[%clk 0:00:05.4]} 81... Rc8 {[%clk 0:00:04.4]} 82. Ke5 {[%clk 0:00:05.3]} 82...
Rxc6 {[%clk 0:00:04.9]} 83. Bxc6 {[%clk 0:00:04]} 83... Kxd3 {[%clk 0:00:05.8]}
84. Bb5+ {[%clk 0:00:04.5]} 84... Ke3 {[%clk 0:00:06.7]} 85. Kd5 {[%clk
0:00:04.6]} 85... d3 {[%clk 0:00:07.6]} 86. Bxd3 {[%clk 0:00:05]} 1/2-1/2

[Event "*** SCC Grand Prix: Titled Tuesday Blitz"]
[Site "Chess.com"]
[Date "2020.10.06"]
[Round "9"]
[White "Oglob71"]
[Black "Meri-Arabidze"]
[Result "0-1"]
[WhiteElo "2503"]
[BlackElo "2698"]
[TimeControl "180+1"]
[EndTime "11:48:29 PDT"]
[Termination "Meri-Arabidze won by checkmate"]

1. d4 {[%clk 0:03:00.9]} 1... d5 {[%clk 0:02:59.8]} 2. Nf3 {[%clk 0:02:58.2]}
2... Nf6 {[%clk 0:02:59.7]} 3. c4 {[%clk 0:02:57.7]} 3... e6 {[%clk 0:02:59.7]}
4. Qc2 {[%clk 0:02:56.9]} 4... Nbd7 {[%clk 0:02:59.2]} 5. Bg5 {[%clk 0:02:55.3]}
5... Be7 {[%clk 0:02:58.9]} 6. e3 {[%clk 0:02:54.9]} 6... h6 {[%clk 0:02:59.2]}
7. Bh4 {[%clk 0:02:54.2]} 7... O-O {[%clk 0:02:58.6]} 8. Nc3 {[%clk 0:02:53.8]}
8... c5 {[%clk 0:02:58.7]} 9. cxd5 {[%clk 0:02:53.3]} 9... Nxd5 {[%clk
0:02:59.6]} 10. Bxe7 {[%clk 0:02:50.5]} 10... Qxe7 {[%clk 0:03:00.5]} 11. Nxd5
{[%clk 0:02:49.9]} 11... exd5 {[%clk 0:03:01.4]} 12. dxc5 {[%clk 0:02:47]} 12...
Nxc5 {[%clk 0:03:02.3]} 13. Be2 {[%clk 0:02:46.9]} 13... Ne4 {[%clk 0:02:59.9]}
14. O-O {[%clk 0:02:46.9]} 14... Be6 {[%clk 0:02:55.7]} 15. Rac1 {[%clk
0:02:45.5]} 15... Rac8 {[%clk 0:02:55.1]} 16. Qa4 {[%clk 0:02:45.3]} 16... a6
{[%clk 0:02:54.1]} 17. Rfd1 {[%clk 0:02:40.9]} 17... Qf6 {[%clk 0:02:50.6]} 18.
Qa3 {[%clk 0:02:39.4]} 18... Rfd8 {[%clk 0:02:38.5]} 19. h3 {[%clk 0:02:39]}
19... Qg6 {[%clk 0:02:32.1]} 20. Kf1 {[%clk 0:02:37.7]} 20... Qf6 {[%clk
0:02:07.9]} 21. Qb4 {[%clk 0:02:34.2]} 21... b5 {[%clk 0:02:05.5]} 22. Qd4
{[%clk 0:02:34.1]} 22... Qe7 {[%clk 0:01:58.8]} 23. a3 {[%clk 0:02:32.8]} 23...
Qb7 {[%clk 0:01:52.8]} 24. Nd2 {[%clk 0:02:27.1]} 24... Bf5 {[%clk 0:01:44.4]}
25. Nb3 {[%clk 0:02:23.2]} 25... Qd7 {[%clk 0:01:34.8]} 26. Nc5 {[%clk
0:02:22.2]} 26... Nxc5 {[%clk 0:01:33.7]} 27. Rxc5 {[%clk 0:02:21]} 27... Rxc5
{[%clk 0:01:31.8]} 28. Qxc5 {[%clk 0:02:20.9]} 28... Be4 {[%clk 0:01:30.6]} 29.
f3 {[%clk 0:02:17.6]} 29... Bg6 {[%clk 0:01:22.8]} 30. b4 {[%clk 0:02:16.4]}
30... f6 {[%clk 0:01:17.7]} 31. Kf2 {[%clk 0:02:15.6]} 31... Bf7 {[%clk
0:01:12.2]} 32. Rc1 {[%clk 0:02:12.5]} 32... Re8 {[%clk 0:00:58.1]} 33. Qd4
{[%clk 0:02:07]} 33... Qe6 {[%clk 0:00:56.6]} 34. Rc7 {[%clk 0:02:02.9]} 34...
Qe5 {[%clk 0:00:45.3]} 35. Qxe5 {[%clk 0:02:02.3]} 35... fxe5 {[%clk 0:00:45.6]}
36. Rc6 {[%clk 0:01:59.3]} 36... Re6 {[%clk 0:00:33.7]} 37. Rxe6 {[%clk
0:01:58.8]} 37... Bxe6 {[%clk 0:00:34.3]} 38. f4 {[%clk 0:01:59.4]} 38... Kf7
{[%clk 0:00:20.3]} 39. fxe5 {[%clk 0:01:59.2]} 39... Bf5 {[%clk 0:00:18.1]} 40.
g4 {[%clk 0:01:41.4]} 40... Be4 {[%clk 0:00:15.5]} 41. Bf3 {[%clk 0:01:30.1]}
41... Ke6 {[%clk 0:00:15.6]} 42. Bd1 {[%clk 0:01:19]} 42... Kxe5 {[%clk
0:00:15.6]} 43. h4 {[%clk 0:01:19.6]} 43... g6 {[%clk 0:00:15.5]} 44. Bb3 {[%clk
0:01:15.5]} 44... g5 {[%clk 0:00:15.3]} 45. Kg3 {[%clk 0:01:14.6]} 45... d4
{[%clk 0:00:14.4]} 46. exd4+ {[%clk 0:01:13.8]} 46... Kxd4 {[%clk 0:00:15.3]}
47. Be6 {[%clk 0:01:14.3]} 47... Bb7 {[%clk 0:00:14.6]} 48. Bb3 {[%clk
0:00:55.6]} 48... Kc3 {[%clk 0:00:14.3]} 49. Bd1 {[%clk 0:00:56.1]} 49... Kb2
{[%clk 0:00:13.8]} 50. a4 {[%clk 0:00:56.1]} 50... bxa4 {[%clk 0:00:12.3]} 51.
Bxa4 {[%clk 0:00:54.9]} 51... Ka3 {[%clk 0:00:12.9]} 52. Bd7 {[%clk 0:00:42.3]}
52... Kxb4 {[%clk 0:00:12.9]} 53. hxg5 {[%clk 0:00:42.9]} 53... hxg5 {[%clk
0:00:13.2]} 54. Kf2 {[%clk 0:00:43.6]} 54... Kc5 {[%clk 0:00:07.6]} 55. Ke3
{[%clk 0:00:43.6]} 55... Kd6 {[%clk 0:00:07.9]} 56. Bf5 {[%clk 0:00:42.9]} 56...
Ke5 {[%clk 0:00:08.4]} 57. Bd7 {[%clk 0:00:41.8]} 57... a5 {[%clk 0:00:08.6]}
58. Kd3 {[%clk 0:00:42.1]} 58... Bd5 {[%clk 0:00:08.7]} 59. Kc3 {[%clk
0:00:41.9]} 59... Be6 {[%clk 0:00:09]} 60. Bc6 {[%clk 0:00:35.2]} 60... Bxg4
{[%clk 0:00:09]} 61. Kc4 {[%clk 0:00:35.3]} 61... Be2+ {[%clk 0:00:09.1]} 62.
Kb3 {[%clk 0:00:34.9]} 62... Bd1+ {[%clk 0:00:08.8]} 63. Kc4 {[%clk 0:00:34.6]}
63... a4 {[%clk 0:00:09]} 64. Kb4 {[%clk 0:00:35]} 64... g4 {[%clk 0:00:09.1]}
65. Ka3 {[%clk 0:00:34.3]} 65... g3 {[%clk 0:00:09.1]} 66. Bg2 {[%clk
0:00:34.1]} 66... Kf4 {[%clk 0:00:09.1]} 67. Bf1 {[%clk 0:00:33.8]} 67... Ke3
{[%clk 0:00:08.9]} 68. Bh3 {[%clk 0:00:33.7]} 68... Kf2 {[%clk 0:00:09.2]} 69.
Kb2 {[%clk 0:00:33.4]} 69... Bf3 {[%clk 0:00:08.6]} 70. Ka3 {[%clk 0:00:32.1]}
70... Bg2 {[%clk 0:00:08.8]} 71. Bd7 {[%clk 0:00:31.1]} 71... Bf1 {[%clk
0:00:08.5]} 72. Bc6 {[%clk 0:00:30.6]} 72... Be2 {[%clk 0:00:08.6]} 73. Kxa4
{[%clk 0:00:18.3]} 73... Bf3 {[%clk 0:00:08.7]} 74. Bd7 {[%clk 0:00:17.6]} 74...
g2 {[%clk 0:00:08.7]} 75. Bb5 {[%clk 0:00:18.1]} 75... g1=Q {[%clk 0:00:08.8]}
76. Ka5 {[%clk 0:00:18.6]} 76... Be2 {[%clk 0:00:08.5]} 77. Kb6 {[%clk
0:00:19.1]} 77... Qe1 {[%clk 0:00:08.8]} 78. Ka7 {[%clk 0:00:19.4]} 78... Bxb5
{[%clk 0:00:08.5]} 79. Kb6 {[%clk 0:00:19.5]} 79... Bd3 {[%clk 0:00:08.6]} 80.
Kc5 {[%clk 0:00:18.7]} 80... Qe4 {[%clk 0:00:08.4]} 81. Kd6 {[%clk 0:00:18.9]}
81... Qf5 {[%clk 0:00:08.2]} 82. Kc7 {[%clk 0:00:19]} 82... Qe6 {[%clk 0:00:08]}
83. Kd8 {[%clk 0:00:19.4]} 83... Qf7 {[%clk 0:00:07.9]} 84. Kc8 {[%clk
0:00:19.6]} 84... Bb5 {[%clk 0:00:06.3]} 85. Kb8 {[%clk 0:00:19.3]} 85... Ba6
{[%clk 0:00:05.6]} 86. Ka8 {[%clk 0:00:18.2]} 86... Qb7# {[%clk 0:00:06.1]} 0-1

[Event "*** SCC Grand Prix: Titled Tuesday Blitz"]
[Site "Chess.com"]
[Date "2020.10.06"]
[Round "10"]
[White "gagtemp"]
[Black "PIwan"]
[Result "0-1"]
[WhiteElo "1965"]
[BlackElo "2524"]
[TimeControl "180+1"]
[EndTime "11:52:32 PDT"]
[Termination "PIwan won by resignation"]

1. e4 {[%clk 0:03:00.9]} 1... c6 {[%clk 0:03:00.9]} 2. d4 {[%clk 0:02:58.9]}
2... d5 {[%clk 0:03:01.8]} 3. exd5 {[%clk 0:02:56.7]} 3... cxd5 {[%clk
0:03:02.7]} 4. c4 {[%clk 0:02:53.3]} 4... Nf6 {[%clk 0:03:00.8]} 5. Nc3 {[%clk
0:02:52.3]} 5... g6 {[%clk 0:03:00.2]} 6. cxd5 {[%clk 0:02:49.1]} 6... Bg7
{[%clk 0:03:00.2]} 7. Nf3 {[%clk 0:02:47.7]} 7... O-O {[%clk 0:03:00.1]} 8. Bc4
{[%clk 0:02:47.2]} 8... Nbd7 {[%clk 0:02:58.9]} 9. O-O {[%clk 0:02:46.6]} 9...
Nb6 {[%clk 0:02:59.1]} 10. Bb3 {[%clk 0:02:45.8]} 10... Nbxd5 {[%clk 0:02:59]}
11. Ne5 {[%clk 0:02:44.5]} 11... Bf5 {[%clk 0:02:33.6]} 12. Bg5 {[%clk
0:02:37.9]} 12... Nxc3 {[%clk 0:02:29.7]} 13. bxc3 {[%clk 0:02:37.1]} 13... Ne4
{[%clk 0:02:30.6]} 14. Bd2 {[%clk 0:02:33.7]} 14... Nxd2 {[%clk 0:02:29.3]} 15.
Qxd2 {[%clk 0:02:25]} 15... Bxe5 {[%clk 0:02:28.7]} 0-1

[Event "*** SCC Grand Prix: Titled Tuesday Blitz"]
[Site "Chess.com"]
[Date "2020.10.06"]
[Round "10"]
[White "blitzking1729"]
[Black "W_Amadeus"]
[Result "1/2-1/2"]
[WhiteElo "2561"]
[BlackElo "2697"]
[TimeControl "180+1"]
[EndTime "11:52:45 PDT"]
[Termination "Game drawn by agreement"]

1. d4 {[%clk 0:03:00.9]} 1... Nf6 {[%clk 0:02:59.6]} 2. Bg5 {[%clk 0:03:00.9]}
2... d5 {[%clk 0:02:55.1]} 3. Nd2 {[%clk 0:03:00]} 3... Nbd7 {[%clk 0:02:50.3]}
4. Ngf3 {[%clk 0:02:58.8]} 4... c5 {[%clk 0:02:42.3]} 5. e3 {[%clk 0:02:57.7]}
5... e6 {[%clk 0:02:40.5]} 6. c3 {[%clk 0:02:56.4]} 6... Be7 {[%clk 0:02:40.2]}
7. Bd3 {[%clk 0:02:55.4]} 7... O-O {[%clk 0:02:36.3]} 8. O-O {[%clk 0:02:54.7]}
8... b6 {[%clk 0:02:36.3]} 9. Qe2 {[%clk 0:02:54.3]} 9... Bb7 {[%clk 0:02:35.1]}
10. Rfe1 {[%clk 0:02:51.3]} 10... h6 {[%clk 0:02:31.8]} 11. Bh4 {[%clk
0:02:47.9]} 11... Re8 {[%clk 0:02:21.2]} 12. e4 {[%clk 0:02:42.5]} 12... Nxe4
{[%clk 0:02:14]} 13. Bxe7 {[%clk 0:02:38]} 13... Qxe7 {[%clk 0:02:11.8]} 14.
Nxe4 {[%clk 0:02:37.8]} 14... dxe4 {[%clk 0:02:11]} 15. Bxe4 {[%clk 0:02:38.7]}
15... Bxe4 {[%clk 0:02:09]} 16. Qxe4 {[%clk 0:02:39.6]} 16... Nf6 {[%clk
0:02:08.6]} 17. Qe2 {[%clk 0:02:39.5]} 17... Rad8 {[%clk 0:02:06.1]} 1/2-1/2

[Event "*** SCC Grand Prix: Titled Tuesday Blitz"]
[Site "Chess.com"]
[Date "2020.10.06"]
[Round "10"]
[White "shriyanasmallya"]
[Black "Khnykin_Nikolay"]
[Result "1/2-1/2"]
[WhiteElo "1628"]
[BlackElo "2042"]
[TimeControl "180+1"]
[EndTime "11:53:20 PDT"]
[Termination "Game drawn by agreement"]

1. e4 {[%clk 0:03:00.9]} 1... e6 {[%clk 0:02:51.9]} 2. d4 {[%clk 0:02:59.7]}
2... d5 {[%clk 0:02:49.5]} 3. Nd2 {[%clk 0:02:58.3]} 3... c5 {[%clk 0:02:41.5]}
4. exd5 {[%clk 0:02:57]} 4... exd5 {[%clk 0:02:39.5]} 5. dxc5 {[%clk 0:02:57.3]}
5... Bxc5 {[%clk 0:02:36.5]} 6. Ngf3 {[%clk 0:02:57.7]} 6... Nf6 {[%clk
0:02:34]} 7. Bb5+ {[%clk 0:02:58.2]} 7... Nc6 {[%clk 0:02:32.8]} 8. Bxc6+ {[%clk
0:02:57.9]} 8... bxc6 {[%clk 0:02:31.6]} 9. O-O {[%clk 0:02:58.3]} 9... O-O
{[%clk 0:02:30.1]} 10. Nb3 {[%clk 0:02:58]} 10... Bb6 {[%clk 0:02:29.4]} 11. Bg5
{[%clk 0:02:57.9]} 11... h6 {[%clk 0:02:27.8]} 12. Bh4 {[%clk 0:02:58.2]} 12...
Qd6 {[%clk 0:02:24.3]} 13. Bg3 {[%clk 0:02:57.1]} 13... Qd7 {[%clk 0:02:15.8]}
14. Ne5 {[%clk 0:02:55.6]} 14... Qb7 {[%clk 0:01:57]} 15. Bh4 {[%clk 0:02:47.3]}
15... Ne4 {[%clk 0:01:51.3]} 16. Qf3 {[%clk 0:02:37.7]} 1/2-1/2

[Event "*** SCC Grand Prix: Titled Tuesday Blitz"]
[Site "Chess.com"]
[Date "2020.10.06"]
[Round "10"]
[White "Borsuk_Konstantin"]
[Black "TokChess"]
[Result "1-0"]
[WhiteElo "2563"]
[BlackElo "2408"]
[TimeControl "180+1"]
[EndTime "11:53:51 PDT"]
[Termination "Borsuk_Konstantin won by resignation"]

1. d4 {[%clk 0:03:00.9]} 1... d5 {[%clk 0:02:59.8]} 2. c4 {[%clk 0:03:01.3]}
2... c6 {[%clk 0:03:00.3]} 3. Nc3 {[%clk 0:03:01.4]} 3... Nf6 {[%clk 0:03:00.7]}
4. e3 {[%clk 0:03:01]} 4... a6 {[%clk 0:02:52.7]} 5. c5 {[%clk 0:02:58.8]} 5...
g6 {[%clk 0:02:46.7]} 6. Bd3 {[%clk 0:02:54.2]} 6... Bg7 {[%clk 0:02:43.2]} 7.
Na4 {[%clk 0:02:52.3]} 7... Nbd7 {[%clk 0:02:35.9]} 8. f4 {[%clk 0:02:49.1]}
8... O-O {[%clk 0:02:35.4]} 9. Qc2 {[%clk 0:02:47.9]} 9... Ne8 {[%clk
0:02:30.2]} 10. Nf3 {[%clk 0:02:45.7]} 10... Nc7 {[%clk 0:02:24.7]} 11. Bd2
{[%clk 0:02:39]} 11... f6 {[%clk 0:02:24.1]} 12. f5 {[%clk 0:02:37]} 12... Qe8
{[%clk 0:02:10.2]} 13. fxg6 {[%clk 0:02:34.4]} 13... hxg6 {[%clk 0:02:10.2]} 14.
Bxg6 {[%clk 0:02:33.7]} 14... Qd8 {[%clk 0:02:05.8]} 15. O-O-O {[%clk
0:02:15.5]} 15... e5 {[%clk 0:02:04.6]} 16. Qf5 {[%clk 0:02:06.3]} 16... Bh6
{[%clk 0:01:53.2]} 17. Qh5 {[%clk 0:01:58]} 17... Kg7 {[%clk 0:01:52.8]} 18. Nh4
{[%clk 0:01:55.5]} 1-0